Cogmind - Beta 16.1 @@@ ROGUE MODE // 2026.04.30 @ 12:21:55 Player: XXYY00 Result: Destroyed by G-47 Trooper with Particle Gun Performance ------------- Evolutions (2) 1000 Regions Visited (5) 1000 Robots Destroyed (57) 285 Value Destroyed (1647) 1647 Prototype IDs (4) 80 Alien Tech Used (0) 0 Bonus (0) 0 TOTAL SCORE: 4012 Bonus ------- None Cogmind --------- Core Integrity 0/550 Matter 280/300 Energy 33/100 System Corruption 6% Temperature Cool (9) Movement Core (250) Ox4 Location -8/Materials Parts ------- > --- POWER (1) -------- (None) > --- PROPULSION (3) --- (None) > --- UTILITY (4) ------ Cooling System Medium Storage Unit Advanced Targeting Computer Recoil Stabilizer > --- WEAPON (3) ------- (None) > --- INVENTORY (10) --- Light Nuclear Core Light Angular Momentum Engine Cooling System Small Storage Unit Visual Processing Unit Datajack Mining Laser Peak State ------------ > --- POWER ------------ Light Nuclear Core > --- PROPULSION ------- Armored Wheel Armored Wheel Armored Wheel > --- UTILITY ---------- Medium Storage Unit Improved Targeting Computer Bomb Drone Bay > --- WEAPON ----------- Shock Rifle Heavy Assault Rifle Mining Laser > --- INVENTORY -------- Light Nuclear Core Cooling System Cooling System Visual Processing Unit Datajack [Rating: 33] Favorites ----------- Power Light Nuclear Core Engine Light Ion Engine Power Core Light Nuclear Core Propulsion Light Treads Treads Light Treads Wheel Armored Wheel Flight Unit VTOL Module Utility Medium Storage Unit Device Recoil Stabilizer Storage Medium Storage Unit Processor Improved Targeting Computer Protection Light Armor Plating Weapon Shotgun Energy Gun Particle Gun Energy Cannon Beam Cannon Ballistic Gun Shotgun Special Weapon Mining Laser Build | -11 -10 -10 -9 -9 -8 ------- Run | Yrd Mat Min Mat Min Mat Slots Evolved 4 | . . . 2 . 2 Power . | . . . . . . Propulsion 1 | . . . . . 1 Utility 2 | . . . 2 . . Weapon 1 | . . . . . 1 Parts Attached 47 | 5 2 3 22 2 13 Power 9 | 1 . 1 5 . 2 Engine 5 | 1 . 1 3 . . Core 4 | . . . 2 . 2 Reactor . | . . . . . . Propulsion 12 | 2 . . 7 . 3 Treads 4 | 2 . . 2 . . Leg . | . . . . . . Wheel 3 | . . . . . 3 Hover . | . . . . . . Flight 5 | . . . 5 . . Utility 11 | . 1 1 5 1 3 Device 4 | . . . 1 1 2 Storage 1 | . 1 . . . . Processor 5 | . . 1 3 . 1 Hackware . | . . . . . . Protection 1 | . . . 1 . . Artifact . | . . . . . . Weapon 15 | 2 1 1 5 1 5 Energy Gun 9 | 2 1 1 1 . 4 Energy Cannon 2 | . . . 2 . . Ballistic Gun 3 | . . . 2 . 1 Ballistic Cannon . | . . . . . . Launcher . | . . . . . . Special Weapon 1 | . . . . 1 . Impact Weapon . | . . . . . . Slashing Weapon . | . . . . . . Piercing Weapon . | . . . . . . Special Melee Weapon . | . . . . . . Unidentified Prototypes 2 | . . . . 1 1 Parts Lost 25 | . . 3 13 . 9 Power 5 | . . 1 3 . 1 Propulsion 5 | . . . 2 . 3 Utility 2 | . . . 2 . . Weapon 13 | . . 2 6 . 5 Highest Loss Streak 4 | . . 2 4 . 4 To Critical Strikes . | . . . . . . Average Backups 3 | . . . 4 4 5 Power . | . . . . 1 1 Propulsion . | . . . . . . Utility 1 | . . . 1 2 2 Weapon . | . . . 1 . . Tool/Special . | . . . . . . Unused Backups 6 | . . 1 1 . 4 Power 2 | . . 1 . . 1 Propulsion . | . . . . . . Utility 3 | . . . 1 . 2 Weapon . | . . . . . . Tool/Special 1 | . . . . . 1 Average Slot Usage (%) 83 | . 76 89 87 81 78 Engine 5 | . 14 5 7 . . Core 4 | . . . 2 11 8 Treads 10 | . 28 28 11 . . Wheel 2 | . . . . . 9 Flight 7 | . . . 9 22 5 Device 5 | . . . 1 11 12 Storage 10 | . 5 14 11 11 9 Processor 12 | . . 12 16 14 9 Protection 2 | . . . 6 . . Energy Gun 11 | . 28 27 5 . 10 Energy Cannon 3 | . . . 7 . . Ballistic Gun 6 | . . . 9 11 8 Special Weapon 1 | . . . . 1 5 Peak Build Rating 33 | 5 7 8 17 26 33 Average Rating 15 | 3 5 7 12 21 25 On Entrance 10 | . 5 7 8 14 26 Avg Prop Armor Cover (%) 1 | . . . . . 1 Naked Turns . | . . . . . . Heaviest Build 30 | 7 18 20 26 27 30 Greatest Support 40 | 40 40 40 40 8 36 Greatest Overweight (x) 7 | . . . 7 3 7 Average Overweight (x) . | . . . . 2 1 Largest Inventory Capacity 10 | 5 10 10 10 10 10 Average Capacity 9 | 5 7 10 10 10 10 Most Carried 10 | 5 1 2 10 7 8 Average Carried 3 | . . . 4 4 5 Final Capacity 10 | 5 10 10 10 10 10 Final Carried 7 | . 1 . 4 5 7 Class Distribution -------------------- 80% | Mutant 19% | Gunner Dominant Class ---------------- Mutant | -10/Materials Mutant | -10/Mines Mutant | -9/Materials Mutant | -9/Mines Gunner | -8/Materials Resources | -11 -10 -10 -9 -9 -8 ----------- Run | Yrd Mat Min Mat Min Mat Matter Collected 883 | 184 19 149 254 . 277 Remotely . | . . . . . . Salvage Created 2011 | . 125 387 634 . 865 Parts 109 | . 9 12 44 . 44 Haulers Intercepted 1 | . . . 1 . . Recyclers Shooed 3 | . . 1 1 . 1 Parts Field Recycled . | . . . . . . Retrieved Matter . | . . . . . . Parts Self-Destructed . | . . . . . . Prevented . | . . . . . . Parts Restored . | . . . . . . Kills | -11 -10 -10 -9 -9 -8 ------- Run | Yrd Mat Min Mat Min Mat Combat Hostiles Destroyed 42 | . 2 6 21 . 13 Guns 30 | . 1 3 14 . 12 Cannons 5 | . . . 5 . . AOE 4 | . 1 . 2 . 1 Classes Destroyed 11 | . 3 2 4 . 2 Worker 3 | . . 1 . . 2 Builder 2 | . . . . . 2 Tunneler 2 | . 1 . 1 . . Hauler 1 | . . . 1 . . Recycler 3 | . . 1 . . 2 Operator 1 | . . . 1 . . Watcher 3 | . 1 . 1 . 1 Swarmer 11 | . . . 11 . . Grunt 25 | . 2 6 7 . 10 Duelist 1 | . . . . . 1 Sentry 5 | . . . 3 . 2 Best Kill Streak 5 | . 3 2 5 . 5 Combat Bots Only 4 | . 1 2 4 . 3 Max Kills in Single Turn 1 | . 1 1 1 . 1 Gunslinging . | . . . . . . Exploded 1 | . 1 . 1 . 1 Melee . | . . . . . . Uniques/NPCs Destroyed . | . . . . . . Combat | -11 -10 -10 -9 -9 -8 -------- Run | Yrd Mat Min Mat Min Mat Hostile Shots Fired 325 | . 5 44 173 . 103 Missed 92 | . 4 8 56 . 24 Hits 233 | . 1 36 117 . 79 Melee 2 | . . . . . 2 Projectile 231 | . 1 36 117 . 77 AOE 3 | . . . 3 . . Critical Strikes 12 | . . 1 3 . 8 Damage Taken 3507 | . 16 475 1451 . 1565 Core 994 | . . 118 317 . 559 Absorbed by Shields . | . . . . . . Regen/Repaired (Parts) 16 | . . . . . 16 Core Remaining (%) 57 | 100 . 52 . 20 . Volleys Fired 166 | . 6 27 70 . 63 Largest 3 | . 2 2 2 . 3 Hottest 128 | . 90 115 115 . 128 Shots Fired 296 | . 12 51 127 . 106 Gun 263 | . 12 51 95 . 105 Cannon 32 | . . . 32 . . Launcher . | . . . . . . Special 1 | . . . . . 1 Kinetic 73 | . . . 39 . 34 Thermal 181 | . 6 40 83 . 52 Explosive . | . . . . . . Electromagnetic 42 | . 6 11 5 . 20 Robot Hit Streak 16 | . 3 11 11 . 16 Robot Miss Streak 5 | . 1 3 5 . 5 Penetration Max . | . . . . . . Secondary Targets 3 | . . 1 2 . . Max Gunslinging Chain 1 | . . 1 1 . . Shots Hit Robots 196 | . 7 36 81 . 72 Core Hits 91 | . 6 12 38 . 35 Critical Kills . | . . . . . . Critical Parts Destroyed . | . . . . . . Critical Strikes 11 | . 1 5 2 . 3 Burn 11 | . 1 5 2 . 3 Melee Attacks . | . . . . . . Impact . | . . . . . . Slashing . | . . . . . . Piercing . | . . . . . . Sneak Attacks . | . . . . . . Combat Hostiles . | . . . . . . Follow-up Attacks . | . . . . . . Damage Inflicted 3969 | . 146 562 1834 . 1427 Guns 2793 | . 88 520 965 . 1220 Cannons 319 | . . . 319 . . Explosions 742 | . 55 42 550 . 95 Melee . | . . . . . . Ramming 91 | . 3 . . . 88 Kinetic 773 | . . . 497 . 276 Thermal 2151 | . 106 482 731 . 832 Explosive 560 | . . . 550 . 10 Electromagnetic 394 | . 37 80 56 . 221 Impact . | . . . . . . Slashing . | . . . . . . Piercing . | . . . . . . Highest Corruption 6 | . . . . . 6 Average Corruption 3 | . . . . . 3 Corruption Purged . | . . . . . . Corruption Blocked . | . . . . . . Effects 15 | . . . . . 15 Message Errors 3 | . . . . . 3 Matter Fused 1 | . . . . . 1 Heat Flow Errors 2 | . . . . . 2 Energy Discharges 5 | . . . . . 5 Parts Rejected 1 | . . . . . 1 Data Loss (minor) 1 | . . . . . 1 Misfires 1 | . . . . . 1 Alerts 1 | . . . . . 1 Overload Shots . | . . . . . . Overflow Damage 203 | . . . 111 . 92 Projectiles . | . . . . . . Explosions 203 | . . . 111 . 92 Melee . | . . . . . . Knockbacks . | . . . . . . Impact . | . . . . . . Kinetic . | . . . . . . Secondary . | . . . . . . Self-Inflicted Damage 430 | . . . 189 . 241 Shots 7 | . . . 4 . 3 Rammed 9 | . 1 . 1 . 7 Targets Rammed 9 | . 1 . 1 . 7 Kicked . | . . . . . . Crushed . | . . . . . . Highest Temperature 468 | . 120 455 386 . 468 Average Temperature 141 | . 51 201 105 . 151 Received Heat Transfer 1347 | . 9 282 255 . 801 Effects 5 | . . 2 2 . 1 Shutdowns 1 | . . . . . 1 Energy Bleed 1 | . . 1 . . . Interference 2 | . . . 2 . . Matter Decay 1 | . . 1 . . . Siege Activations . | . . . . . . Martial Activations . | . . . . . . Shielding Activations . | . . . . . . Robots Disrupted . | . . . . . . Combat Hostiles . | . . . . . . Robots Corrupted . | . . . . . . Combat Hostiles . | . . . . . . Parts Fried . | . . . . . . Impact Corruptions . | . . . . . . Robots Melted 3 | . . 3 . . . Combat Hostiles 3 | . . 3 . . . Parts Melted 7 | . 1 3 1 . 2 Heat Transferred 5776 | . 272 1617 1924 . 1963 Parts Sabotaged . | . . . . . . Parts Stolen . | . . . . . . Parts Stripped . | . . . . . . Power Chain Reactions 3 | . 1 1 . . 1 Alert | -11 -10 -10 -9 -9 -8 ------- Run | Yrd Mat Min Mat Min Mat Maximum Alert Level 1 | . . . 1 . 1 Low Security (%) 96 | 100 100 100 93 100 96 Level 1 3 | . . . 6 . 3 Level 2 . | . . . . . . Level 3 . | . . . . . . Level 4 . | . . . . . . Level 5 . | . . . . . . High Security . | . . . . . . Max Security . | . . . . . . Peak Influence 278 | . 57 61 278 102 256 Initial 102 | . . . . 102 4 Average 36 | . 15 14 41 59 43 Influence Increases 1435 | . 81 161 666 . 527 Destroy 0b10 Robot/C 840 | . 40 120 420 . 260 Destroy 0b10 Robot/NC 75 | . 10 10 20 . 35 Destroy Leader 198 | . 12 30 94 . 62 Allied During Kill 2 | . . . . . 2 Successful Hack 26 | . 14 . 12 . . Disable Machine 165 | . . . 90 . 75 Destroy Structure 84 | . 5 1 30 . 48 Partial Spotted 15 | . . . . . 15 Lose Combat Pursuer 30 | . . . . . 30 Influence Decreases 1199 | . 81 161 404 250 303 Entered New Map 168 | . . . . 160 8 Time Decay 801 | . 81 131 314 90 185 Lost Part 210 | . . 30 90 . 90 Lost Ally 20 | . . . . . 20 Squads Dispatched 8 | . 1 . 4 . 3 Investigation 3 | . . . 1 . 2 Extermination . | . . . . . . Reinforcement 5 | . 1 . 3 . 1 Assault . | . . . . . . Garrison . | . . . . . . Intercept . | . . . . . . Searches Triggered . | . . . . . . Construction Impeded 1 | . . . . . 1 Haulers Reinforced . | . . . . . . Active Scanning Responses . | . . . . . . Cargo Convoy Interrupts . | . . . . . . Stealth | -11 -10 -10 -9 -9 -8 --------- Run | Yrd Mat Min Mat Min Mat Distress Signals 5 | . 2 . 1 . 2 Communications Jammed . | . . . . . . Distress Signals . | . . . . . . Times Spotted 70 | . 5 6 36 . 23 Peak Tracking Total 6 | . 4 2 6 . 4 Tactical Retreats 1 | . . . . . 1 Traps | -11 -10 -10 -9 -9 -8 ------- Run | Yrd Mat Min Mat Min Mat Traps Triggered 4 | . . . 1 . 3 Indirectly . | . . . . . . Trap Hack Attempts . | . . . . . . Triggered . | . . . . . . Disarmed . | . . . . . . Reprogrammed . | . . . . . . Reused . | . . . . . . Traps Extracted . | . . . . . . Installed . | . . . . . . Triggered . | . . . . . . Machines | -11 -10 -10 -9 -9 -8 ---------- Run | Yrd Mat Min Mat Min Mat Machines Disabled 11 | . . . 6 . 5 Max in Single Turn 2 | . . . 2 . 2 Machines Repaired . | . . . . . . Machines Dismantled . | . . . . . . Machines Sabotaged . | . . . . . . Overloaded Fab Kills . | . . . . . . Hacking | -11 -10 -10 -9 -9 -8 --------- Run | Yrd Mat Min Mat Min Mat Machines Accessed 13 | . 2 . 6 1 4 Terminals 8 | . 1 . 4 . 3 Fabricators . | . . . . . . Repair Stations 1 | . . . . . 1 Recycling Units 2 | . 1 . 1 . . Scanalyzers 1 | . . . 1 . . Garrison Access . | . . . . . . Total Hacks 38 | . 5 . 15 1 17 Successful 24 | . 4 . 9 1 10 Failed 12 | . 1 . 4 . 7 Catastrophic 2 | . 1 . . . 1 Database Lockouts 2 | . . . 2 . . Manual . | . . . . . . Terminals 25 | . 2 . 11 . 12 Fabricators . | . . . . . . Repair Stations 5 | . . . . . 5 Recycling Units 5 | . 3 . 2 . . Scanalyzers 2 | . . . 2 . . Garrison Access . | . . . . . . Terminal Hacks 16 | . 1 . 6 1 8 Record 11 | . . . 3 . 8 Prototype ID Bank 1 | . . . 1 . . Open Door 1 | . . . . 1 . Alert Level 1 | . . . 1 . . Locate Traps 1 | . 1 . . . . Investigation Status 1 | . . . 1 . . Fabricator Hacks . | . . . . . . Repair Station Hacks 2 | . . . . . 2 Scan Component 1 | . . . . . 1 Repair 1 | . . . . . 1 Recycling Unit Hacks 5 | . 3 . 2 . . Report Inventory 2 | . 1 . 1 . . Retrieve Matter 1 | . 1 . . . . Retrieve Components 2 | . 1 . 1 . . Scanalyzer 1 | . . . 1 . . Retrieve Study 1 | . . . 1 . . Garrison Access Hacks . | . . . . . . Unauthorized Hacks . | . . . . . . Terminals . | . . . . . . Fabricators . | . . . . . . Repair Stations . | . . . . . . Recycling Units . | . . . . . . Scanalyzers . | . . . . . . Garrison Access . | . . . . . . Data Cores Recovered . | . . . . . . Used . | . . . . . . Hacking Detections 5 | . 1 . 2 . 2 Full Trace Events 3 | . 1 . . . 2 Feedback Events . | . . . . . . Feedback Blocked . | . . . . . . Robot Schematics Acquired . | . . . . . . Robots Built . | . . . . . . Authchips . | . . . . . . Time . | . . . . . . Total Robot Build Rating . | . . . . . . Part Schematics Acquired . | . . . . . . Parts Built . | . . . . . . Authchips . | . . . . . . Time . | . . . . . . Total Part Build Rating . | . . . . . . Part Studies Acquired 1 | . . . 1 . . Parts Repaired 1 | . . . . . 1 Time 38 | . . . . . 38 Parts Recycled . | . . . . . . Recycled Matter . | . . . . . . Retrieved Matter . | . . . . . . Retrieved Components 14 | . 8 . 6 . . Parts Scanalyzed . | . . . . . . Part Schematics Acquired . | . . . . . . Parts Damaged . | . . . . . . Bothacking | -11 -10 -10 -9 -9 -8 ------------ Run | Yrd Mat Min Mat Min Mat Used RIF Installer . | . . . . . . Robots Hacked . | . . . . . . Non-combat . | . . . . . . Combat . | . . . . . . Robot Hacks Applied . | . . . . . . Relay Couplers Released . | . . . . . . Fabnet Peak Effective % . | . . . . . . Robots Rewired . | . . . . . . Allies Hacked . | . . . . . . Hacks Repelled . | . . . . . . Allies | -11 -10 -10 -9 -9 -8 -------- Run | Yrd Mat Min Mat Min Mat Total Allies 1 | . . . . 1 . Largest Group 1 | . . . . 1 1 Highest-Rated Group 31 | . . . . 31 31 Highest-Rated Ally 31 | . . . . 31 31 Total Orders . | . . . . . . Ally Attacks 14 | . . . . . 14 Total Damage 187 | . . . . . 187 Kills . | . . . . . . Allies Corrupted . | . . . . . . Allies Melted . | . . . . . . Intel | -11 -10 -10 -9 -9 -8 ------- Run | Yrd Mat Min Mat Min Mat Active Infowar (turns) 227 | . . . 227 . . Optics 227 | . . . 227 . . Robot Analysis Total . | . . . . . . Derelict Logs Recovered 1 | . . 1 . . . Drone Launches . | . . . . . . Drone Recoveries . | . . . . . . Exploration | -11 -10 -10 -9 -9 -8 ------------- Run | Yrd Mat Min Mat Min Mat Turns Passed 3592 | 64 287 463 1559 186 1033 Spaces Moved 1698 | 49 165 236 729 75 444 Core 36 | 21 . . 13 . 2 Treads 835 | 28 165 236 406 . . Legs . | . . . . . . Wheels 338 | . . . . . 338 Hover . | . . . . . . Flight 489 | . . . 310 75 104 Fastest Speed 50 | 50 160 160 112 197 90 Average Speed 177 | 112 160 160 178 243 187 Slowest Speed 600 | 160 160 160 400 277 600 Overloaded Moves . | . . . . . . Propulsion Burnouts . | . . . . . . Robots Hopped . | . . . . . . Potential Cave-ins . | . . . . . . Cave-ins Triggered . | . . . . . . Exploration Rate (%) 34 | 3 30 58 59 21 33 Regions Visited 5 Branch Regions 2 Pre-discovered Areas . | . . . . . . Known Exits Taken . | . . . . . . Unknown Exits Taken 5 | 1 1 1 1 1 . Scrap Searched 2 | . . 2 . . . Spaces Dug . | . . . . . . Terrain Destroyed 82 | . 7 1 28 . 46 Melee . | . . . . . . Projectile . | . . . . . . AOE 82 | . 7 1 28 . 46 Terrain Rammed . | . . . . . . Walls Destroyed . | . . . . . . Machines Disabled . | . . . . . . Actions | -11 -10 -10 -9 -9 -8 --------- Run | Yrd Mat Min Mat Min Mat Total 1989 | 58 175 271 857 80 548 Wait . | . . . . . . Move 1693 | 48 164 235 728 74 444 Hop . | . . . . . . Pick Up 55 | 5 2 4 27 2 15 Fast Attach . | . . . . . . Attach 39 | 5 1 4 14 2 13 Detach 3 | . . . . 2 1 Swap 12 | . 1 . 9 . 2 Drop 12 | . . 1 8 . 3 Fire 166 | . 6 27 70 . 63 Melee . | . . . . . . Ram 8 | . . . 1 . 7 Kick . | . . . . . . Crush 1 | . 1 . . . . Escape Stasis . | . . . . . . Rewire . | . . . . . . Trap . | . . . . . . Miscellaneous . | . . . . . . Route ------- -11/Scrapyard -10/Materials -10/Mines -9/Materials (discovered 3 exits: *Min x2 / *Sto) -9/Mines -8/Materials History --------- Turn | Location | Event 8 | -11/Scrapyard | Discovered new exit (range 15) 65 | -11/Scrapyard | Entered Materials 322 | -10/Materials | Build established: Mutant 334 | -10/Materials | Discovered new exit (range 11) 352 | -10/Materials | Entered Mines 533 | -10/Mines | Learned location of 1 exit from Materials 804 | -10/Mines | Discovered new exit (range 5) 815 | -10/Mines | Entered Materials 815 | -9/Materials | Evolved 2 slots: Utility x2 816 | -9/Materials | Identified exit to Storage 1082 | -9/Materials | Discovered new exit (range 7) 1113 | -9/Materials | Lost 3 parts (1p2w) 1129 | -9/Materials | Central database locked down 1402 | -9/Materials | Central database locked down 2252 | -9/Materials | Core integrity fell below 50% 2312 | -9/Materials | Lost 4 parts (1n3w) 2356 | -9/Materials | Discovered new exit (range 8) 2374 | -9/Materials | Entered Mines 2419 | -9/Mines | Found the Drone Emporium 2436 | -9/Mines | Found Prototype Device 2438 | -9/Mines | Identified Bomb Drone Bay 2519 | -9/Mines | Received a Mining Laser from a helpful Derelict 2519 | -9/Mines | Discovered new exit (range 10) 2560 | -9/Mines | Entered Materials 2560 | -8/Materials | Accompanied by 1 ally 2560 | -8/Materials | Evolved 2 slots: Propulsion x1, Weapon x1 3033 | -8/Materials | Build established: Gunner 3200 | -8/Materials | Repaired Lgt. Nuclear Core? 3498 | -8/Materials | Core integrity fell below 50% 3534 | -8/Materials | Core integrity fell below 20% 3593 | -8/Materials | Destroyed by G-47 Trooper with Particle Gun Last Messages --------------- W-25 Informer sends out distress signal. K-01 Serf collects debris. Critical hit (Burn: +37). Imp. Heat Sink melted. G-47 Trooper destroyed. K-01 Serf collects debris. K-01 Serf cleans the Terminal. System corrupted: IFF burst signal emitted. R-06 Scavenger destroyed. Acquired Corrupted Sml. Storage Unit. Arm. Wheel destroyed. Critical hit (Burn: +37). System corrupted: Matter fused (-5). Chain reaction triggered in Imp. Ion Engine. L-31 Rogue destroyed. Lgt. Nuclear Core destroyed. Destroyed Lgt. Nuclear Core. Particle Gun destroyed. K-01 Serf collects debris. Shock Rifle destroyed. Map ----- +----------------------------------------------------+ | ?????????????????????????????????????????????????? | | ?????????????????????????????????????????????????? | | ?????????????????????????????????????????????????? | | ?????????????????????????????????????????????????? | | ?????????????????????????????????????????????????? | | ?????????????????????????????????????????????????? | | ?????????????????????????????????????????????????? | | ?????????????????????????????????????????????????? | | ?????????????????????????????????????????????????? | | ?????????????????????????????????????????????????? | | ????????????????????????] ??????????????????????? | | ???????????????????????? ??????????????????????? | | ???????????????????????? ??????????????????????? | | ???????????????????????? ??????????????????????? | | ???????????????????????? ??????????????????????? | | ???????????????????????? ??????????????????????? | | ????????????????????????!! ??????????????????????? | | ????????????????????????!= ??????????????????????? | | ???????????????????????? ??????????????????????? | | ????????????????????????#;#?####?????????????????? | | ????????????????????????# #? #?????????????????? | | ????????????????????????#!# "" #?????????????????? | | ????????????????????#####=#!Y" #?????????????????? | | ????????????????????? !;*; " #?????????????????? | | ??????????????????????? ;%; g #?????????????????? | | ????????????????????????#@;k #?????????????????? | | ??????????????????????? ; ; #?????????????????? | | ????????????????????? ;=# ! #?????????????????? | | ???????????????????"" # # #?????????????????? | | ?????????????????"""" # #?#g##?????????????????? | | ????????????????? ?# #?? #??????????????????? | | ?????????????????######?# #???#??????????????????? | | ????????????????????????# #??????????????????????? | | ????????????????????????# #??????????????????????? | | ????????????????????????# #??????????????????????? | | ????????????????????????# #??????????????????????? | | ???#+##+################# ###????????????????????? | | "" # #"" """??????????????? | | + + """??????????????? | | ???# # #??????????? | | ?????# #### ###+###########????????????????????? | | ??????????# #? ??????????????????????????????? | | ??????????# #? ??????????????????????????????? | | ??????????# # ?????????????????????????????? | | ??????????# # """ ?????????????????????????????? | | ??????????# %# """ "????????????????????????????? | | ??????????# !# """ "????????????????????????????? | | ??????????# %%# ???????????????????????????? | | ??????????# % ###########????????????????????????? | | ??????????# % # #????????????????????????? | +----------------------------------------------------+ Best States ------------- Heat Dissipation 53 Energy Generation 14 Energy Capacity 265 Matter Stores 300 Matter Capacity 300 Sight Range 18 Terrain Scan Density 10 Armor Coverage 150 Evasion (%) 50 Targeting Accuracy 12 Recoil Reduction 8 Item Schematics ----------------- None Robot Schematics ------------------ None Fabricated ------------ Nothing Repaired ---------- Lgt. Nuclear Core | 68% | -8/Materials Studied --------- Shotgun | -9/Materials | Hacked Alien Tech Used ----------------- None Achievements -------------- None Challenges ------------ None Game ------ Seed TerrainRemoteHumpback Manual? 0 Play Time 00:28:00 Cumulative 3.3 hours Start 2026.02.11 @ 13:16:07 End 2026.04.30 @ 12:21:55 Sessions 3 Manual Loads 0 Difficulty Rogue Special Mode None Game No. 10 Rogue 10 Adventurer 0 Explorer 0 Win Type - Total 0 Types 0/0/0/0/0/0/0/0/0/0 Lore% 3 Gallery% 7 Achievement% 8 Wizard Run 0 Options --------- Layout 1 ASCII 0 Keyboard 0 Movement Arrows Keybinds 0 Fullscreen 1 Font 32/SmallcapsGlow Map View 50x40 Zoom Use 0% Tactical HUD 0 Map Filters NONE Filters NONE Steam 1 RUN: 893a2323-b41e-469f-b617-769d70d3e0f3